lending/lending_fUSD_20240610
["ID","MTS","AMOUNT","RATE_DAILY","PERIOD"]
[329014582,1718061083933,-500.0,0.00029989,4]
[329014583,1718061083943,-500.0,0.00029989,4]
[329014584,1718061083953,-500.0,0.00029989,4]
[329014585,1718061083963,-500.0,0.00029989,4]
[329014586,1718061083974,-500.0,0.00029989,4]
[329014587,1718061083985,-500.0,0.00029989,4]
[329014588,1718061083995,-500.0,0.00029989,4]
[329014589,1718061084006,-500.0,0.00029989,4]
[329014590,1718061084020,-500.0,0.00029989,4]
[329014591,1718061084040,-500.0,0.00029989,4]
[329014592,1718061084056,-500.0,0.00029989,4]
[329014593,1718061084076,-500.0,0.00029989,4]
[329014594,1718061084100,-500.0,0.00029989,4]
[329014595,1718061084118,-500.0,0.00029989,4]
[329014596,1718061084136,-500.0,0.00029989,4]
[329014597,1718061084153,-500.0,0.00029989,4]
[329014598,1718061084170,-500.0,0.00029989,4]
[329014599,1718061084189,-500.0,0.00029989,4]
[329014600,1718061084211,-500.0,0.00029989,4]
[329014601,1718061084226,-500.0,0.00029989,4]
[329014602,1718061084242,-500.0,0.00029989,4]
[329014603,1718061084259,-500.0,0.00029989,4]
[329014604,1718061084275,-500.0,0.00029989,4]
[329014605,1718061084288,-500.0,0.00029989,4]
[329014606,1718061084305,-500.0,0.00029989,4]
[329014607,1718061084322,-500.0,0.00029989,4]
[329014608,1718061084339,-500.0,0.00029989,4]
[329014609,1718061084355,-513.06,0.00029989,4]
[329014610,1718061084373,-500.0,0.00029989,4]
[329014611,1718061084390,-500.0,0.00029989,4]
[329014612,1718061084406,-500.0,0.00029989,4]
[329014613,1718061084423,-994.87,0.00029989,4]
[329014614,1718061084439,-500.0,0.00029989,4]
[329014615,1718061084456,-500.0,0.00029989,4]
[329014616,1718061084472,-500.0,0.00029989,4]
[329014617,1718061084488,-985.34,0.00029989,4]
[329014618,1718061084503,-600.32,0.00029989,4]
[329014619,1718061084519,-500.0,0.00029989,4]
[329014620,1718061084535,-500.0,0.00029989,4]
[329014621,1718061084549,-500.0,0.00029989,4]
[329014622,1718061084566,-500.0,0.00029989,4]
[329014623,1718061084581,-500.0,0.00029989,4]
[329014624,1718061084597,-3328.2,0.00029989,4]
[329014625,1718061084615,-500.0,0.00029989,4]
[329014626,1718061084631,-500.0,0.00029989,4]
[329014627,1718061084647,-500.0,0.00029989,4]
[329014628,1718061084663,-500.0,0.00029989,4]
[329014629,1718061084680,-500.0,0.00029989,4]
[329014630,1718061084695,-500.0,0.00029989,4]
[329014631,1718061084711,-500.0,0.00029989,4]
[329014632,1718061084727,-500.0,0.00029989,4]
[329014633,1718061084742,-500.0,0.00029989,4]
[329014634,1718061084760,-500.0,0.00029989,4]
[329014635,1718061084776,-500.0,0.00029989,4]
[329014636,1718061084792,-500.0,0.00029989,4]
[329014637,1718061084807,-500.0,0.00029989,4]
[329014638,1718061084825,-1114.92,0.00029989,4]
[329014639,1718061084841,-500.0,0.00029989,4]
[329014640,1718061084858,-500.0,0.00029989,4]
[329014641,1718061084875,-587.66,0.00029989,4]
[329014642,1718061084894,-500.0,0.00029989,4]
[329014643,1718061084910,-500.0,0.00029989,4]
[329014644,1718061084929,-500.0,0.00029989,4]
[329014645,1718061084946,-2542.05,0.00029989,4]
[329014646,1718061084962,-500.0,0.00029989,4]
[329014647,1718061084979,-500.0,0.00029989,4]
[329014648,1718061084995,-500.0,0.00029989,4]
[329014649,1718061085011,-4012.45,0.00029989,4]
[329014650,1718061085028,-500.0,0.00029989,4]
[329014651,1718061085157,-500.0,0.00029989,4]
[329014652,1718061085169,-500.0,0.00029989,4]
[329014653,1718061085181,-500.0,0.00029989,4]
[329014654,1718061085194,-500.0,0.00029989,4]
[329014655,1718061085206,-500.0,0.00029989,4]
[329014656,1718061085217,-500.0,0.00029989,4]
[329014657,1718061085229,-500.0,0.00029989,4]
[329014658,1718061085239,-500.0,0.00029989,4]
[329014659,1718061085250,-2791.45,0.00029989,4]
[329014660,1718061085262,-500.0,0.00029989,4]
[329014661,1718061085273,-255.64,0.00029989,4]
[329014662,1718061085284,-500.0,0.00029989,4]
[329014663,1718061085295,-394.51,0.00029989,4]
[329014664,1718061085306,-500.0,0.00029989,4]
[329014665,1718061085316,-945.53,0.00029989,4]
[329014666,1718061085326,-961.66,0.00029989,4]
[329014667,1718061085337,-500.0,0.00029989,4]
[329014668,1718061085348,-500.0,0.00029989,4]
[329014669,1718061085363,-262.66113305,0.00029989,4]
[329014670,1718061085374,-500.0,0.00029989,4]
[329014671,1718061085385,-500.0,0.00029989,4]
[329014672,1718061085396,-500.0,0.00029989,4]
[329014673,1718061085408,-521.9,0.00029989,4]
[329014674,1718061085419,-500.0,0.00029989,4]
[329014675,1718061085430,-500.0,0.00029989,4]
[329014676,1718061085441,-3147.09,0.00029989,4]
[329014677,1718061085452,-500.0,0.00029989,4]
[329014678,1718061085463,-500.0,0.00029989,4]
[329014679,1718061085475,-500.0,0.00029989,4]
[329014680,1718061085486,-500.0,0.00029989,4]
[329014681,1718061085497,-500.0,0.00029989,4]
[329014682,1718061085509,-500.0,0.00029989,4]
[329014683,1718061085521,-500.0,0.00029989,4]
[329014684,1718061085532,-500.0,0.00029989,4]
[329014685,1718061085543,-500.0,0.00029989,4]
[329014686,1718061085554,-500.0,0.00029989,4]
[329014687,1718061085566,-1585.59,0.00029989,4]
[329014688,1718061085577,-500.0,0.00029989,4]
[329014689,1718061085589,-223.0,0.00029989,4]
[329014690,1718061085599,-500.0,0.00029989,4]
[329014691,1718061085610,-864.13,0.00029989,4]
[329014692,1718061085621,-178.6855443,0.00029989,4]
[329014693,1718061085632,-500.0,0.00029989,4]
[329014694,1718061085642,-500.0,0.00029989,4]
[329014695,1718061085653,-500.0,0.00029989,4]
[329014696,1718061085664,-500.0,0.00029989,4]
[329014697,1718061085675,-500.0,0.00029989,4]
[329014698,1718061085686,-500.0,0.00029989,4]
[329014699,1718061085696,-500.0,0.00029989,4]
[329014700,1718061085706,-363.07,0.00029989,4]
[329014701,1718061085717,-152.97,0.00029989,4]
[329014702,1718061085727,-500.0,0.00029989,4]
[329014703,1718061085737,-500.0,0.00029989,4]
[329014704,1718061085748,-500.0,0.00029989,4]
[329014705,1718061085759,-159.5,0.0002999,15]
[329014706,1718061085769,-2052.022326,0.0002999,3]
[329014707,1718061085780,-5400.0,0.0002999,30]
[329014708,1718061085791,-465.0,0.0002999,2]
[329014709,1718061085802,-26958.80590278,0.0002999,2]
[329014710,1718061085812,-311532.56088007,0.0002999,2]
[329014711,1718061085823,-500.0,0.0002999,2]
[329014712,1718061085833,-509.7552371,0.0002999,2]
[329014713,1718061085849,-500.0,0.00029994,4]
[329014714,1718061085859,-500.0,0.00029994,4]
[329014715,1718061085870,-382.48,0.00029994,4]
[329014716,1718061085882,-612.78,0.00029994,4]
[329014717,1718061085893,-301.91,0.00029994,4]
[329014718,1718061085904,-489.55,0.00029994,4]
[329014719,1718061085915,-500.0,0.00029994,4]
[329014720,1718061085928,-994.87,0.00029994,4]
[329014721,1718061085939,-500.0,0.00029994,4]
[329014722,1718061085950,-500.0,0.00029994,4]
[329014723,1718061085960,-985.34,0.00029994,4]
[329014724,1718061085971,-500.0,0.00029994,4]
[329014725,1718061085982,-3328.2,0.00029994,4]
[329014726,1718061085993,-172.99884045,0.00029994,4]
[329014727,1718061086004,-1114.92,0.00029994,4]
[329014728,1718061086014,-500.0,0.00029994,4]
[329014729,1718061086025,-456.0,0.00029994,4]
[329014730,1718061086036,-500.0,0.00029994,4]
[329014731,1718061086046,-2542.05,0.00029994,4]
[329014732,1718061086057,-4012.45,0.00029994,4]
[329014733,1718061086068,-500.0,0.00029994,4]
[329014734,1718061086079,-262.89,0.00029994,4]
[329014735,1718061086089,-500.0,0.00029994,4]
[329014736,1718061086100,-2791.45,0.00029994,4]
[329014737,1718061086110,-500.0,0.00029994,4]
[329014738,1718061086121,-500.0,0.00029994,4]
[329014739,1718061086131,-961.66,0.00029994,4]
[329014740,1718061086141,-500.0,0.00029994,4]
[329014741,1718061086152,-500.0,0.00029994,4]
[329014742,1718061086162,-500.0,0.00029994,4]
[329014743,1718061086173,-500.0,0.00029994,4]
[329014744,1718061086184,-1585.59,0.00029994,4]
[329014745,1718061086194,-500.0,0.00029994,4]
[329014746,1718061086204,-290.63,0.00029994,4]
[329014747,1718061086215,-500.0,0.00029994,4]
[329014748,1718061086225,-500.0,0.00029994,4]
[329014749,1718061086235,-701.23099052,0.00029995,2]
[329014750,1718061086245,-429.72610694,0.00029995,2]
[329014751,1718061086255,-500.0,0.00029995,4]
[329014752,1718061086265,-500.0,0.00029995,4]
[329014753,1718061086275,-500.0,0.00029995,4]
[329014754,1718061086286,-500.0,0.00029995,4]
[329014755,1718061086296,-500.0,0.00029995,4]
[329014756,1718061086306,-624.11,0.00029995,4]
[329014757,1718061086315,-395.12,0.00029995,4]
[329014758,1718061086325,-500.0,0.00029995,4]
[329014759,1718061086336,-500.0,0.00029995,4]
[329014760,1718061086346,-376.84,0.00029995,4]
[329014761,1718061086356,-500.0,0.00029995,4]
[329014762,1718061086368,-2770.45,0.00029995,4]
[329014763,1718061086378,-320.14,0.00029995,4]
[329014764,1718061086389,-500.0,0.00029995,4]
[329014765,1718061086399,-152.63,0.00029995,4]
[329014766,1718061086410,-629.14,0.00029995,4]
[329014767,1718061086421,-500.0,0.00029995,4]
[329014768,1718061086432,-273.28,0.00029995,4]
[329014769,1718061086442,-500.0,0.00029995,4]
[329014770,1718061086452,-500.0,0.00029995,4]
[329014771,1718061086463,-500.0,0.00029995,4]
[329014772,1718061086473,-412.52,0.00029995,4]
[329014773,1718061086483,-500.0,0.00029995,4]
[329014774,1718061086494,-500.0,0.00029995,4]
[329014775,1718061086505,-500.0,0.00029995,4]
[329014776,1718061086515,-500.0,0.00029995,4]
[329014777,1718061086526,-500.0,0.00029995,4]
[329014778,1718061086537,-500.0,0.00029995,4]
[329014779,1718061086547,-606.67,0.00029995,4]
[329014780,1718061086559,-500.0,0.00029995,4]
[329014781,1718061086570,-533.58,0.00029995,4]
[329014782,1718061086581,-333.05,0.00029995,4]
[329014783,1718061086593,-500.0,0.00029995,4]
[329014784,1718061086603,-500.0,0.00029995,4]
[329014785,1718061086613,-401.58,0.00029995,4]
[329014786,1718061086701,-500.0,0.00029995,4]
[329014787,1718061086712,-500.0,0.00029995,4]
[329014788,1718061086723,-500.0,0.00029995,4]
[329014789,1718061086734,-500.0,0.00029995,4]
[329014790,1718061086744,-500.0,0.00029995,4]
[329014791,1718061086755,-500.0,0.00029995,4]
[329014792,1718061086765,-500.0,0.00029995,4]
[329014793,1718061086776,-500.0,0.00029995,4]
[329014794,1718061086786,-196.03,0.00029995,4]
[329014795,1718061086797,-500.0,0.00029995,4]
[329014796,1718061086808,-639.36842275,0.00029995,4]
[329014797,1718061086819,-500.0,0.00029995,4]
[329014798,1718061086830,-500.0,0.00029995,4]
[329014799,1718061086845,-500.0,0.00029995,4]
[329014800,1718061086855,-500.0,0.00029995,4]
[329014801,1718061086865,-500.0,0.00029995,4]
[329014802,1718061086875,-500.0,0.00029995,4]
[329014803,1718061086887,-500.0,0.00029995,4]
[329014804,1718061086898,-434.66,0.00029995,4]
[329014805,1718061086909,-500.0,0.00029995,4]
[329014806,1718061086920,-500.0,0.00029995,4]
[329014807,1718061086932,-500.0,0.00029995,4]
[329014808,1718061086943,-500.0,0.00029995,4]
[329014809,1718061086953,-520.1,0.00029995,4]
[329014810,1718061086964,-945.53,0.00029995,4]
[329014811,1718061086974,-500.0,0.00029995,4]
[329014812,1718061086985,-500.0,0.00029995,4]
[329014813,1718061086996,-3147.09,0.00029995,4]
[329014814,1718061087007,-500.0,0.00029995,4]
[329014815,1718061087017,-500.0,0.00029995,4]
[329014816,1718061087028,-498.62,0.00029995,4]
[329014817,1718061087039,-500.0,0.00029995,4]
[329014818,1718061087049,-500.0,0.00029995,4]
[329014819,1718061087060,-864.13,0.00029995,4]
[329014820,1718061087071,-500.0,0.00029995,4]
[329014821,1718061087081,-500.0,0.00029995,4]
[329014822,1718061087092,-500.0,0.00029995,4]
[329014823,1718061087103,-500.0,0.00029995,4]
[329014824,1718061087113,-500.0,0.00029995,4]
[329014825,1718061087123,-1626.85199103,0.00029996,2]
[329014826,1718061087133,-298.68228462,0.00029996,2]
[329014827,1718061087144,-798.12209158,0.00029996,2]
[329014828,1718061087154,-155.25283367,0.00029996,2]
[329014829,1718061087164,-2285.01619169,0.00029996,2]
[329014830,1718061087174,-381.97827758,0.00029996,2]
[329014831,1718061087185,-417.45255306,0.00029996,2]
[329014832,1718061087195,-164.57038171,0.00029996,2]
[329014833,1718061087205,-228.08747023,0.00029996,2]
[329014834,1718061087216,-688.66530274,0.00029996,2]
[329014835,1718061087226,-263.8016458,0.00029996,2]
[329014836,1718061087238,-3386.25740591,0.00029996,2]
[329014837,1718061087248,-2370.40737101,0.00029996,2]
[329014838,1718061087259,-198.10847782,0.00029996,2]
[329014839,1718061087269,-155.31014822,0.00029996,2]
[329014840,1718061087281,-625.74636743,0.00029996,2]
[329014841,1718061087291,-1490.02429132,0.00029996,2]
[329014842,1718061087301,-490.42437112,0.00029996,2]
[329014843,1718061087312,-537.72037607,0.00029996,2]
[329014844,1718061087324,-864.46411372,0.00029996,2]
[329014845,1718061087334,-268.32530534,0.00029996,2]
[329014846,1718061087344,-7542.42300852,0.00029996,2]
[329014847,1718061087355,-241.58417095,0.00029996,2]
[329014848,1718061087367,-155.0,0.00029996,2]
[329014849,1718061087378,-158.37435282,0.00029996,2]
[329014850,1718061087388,-155.0,0.00029996,2]
[329014851,1718061087398,-177.873689,0.00029996,2]
[329014852,1718061087410,-4026.55857928,0.00029996,2]
[329014853,1718061087420,-317.63375932,0.00029997,2]
[329014854,1718061087432,-150.8,0.00029997,4]
[329014855,1718061087442,-500.0,0.00029997,4]
[329014856,1718061087453,-244.72,0.00029997,4]
[329014857,1718061087464,-244.42,0.00029997,4]
[329014858,1718061087474,-500.0,0.00029997,4]
[329014859,1718061087485,-3328.2,0.00029997,4]
[329014860,1718061087495,-2542.05,0.00029997,4]
[329014861,1718061087506,-288.74,0.00029997,4]
[329014862,1718061087518,-500.0,0.00029997,4]
[329014863,1718061087528,-155.0,0.00029998,2]
[329014864,1718061087538,-1639.94884299,0.00029998,2]
[329014865,1718061087549,-865.66588969,0.00029998,3]
[329014866,1718061087559,-158.96899296,0.00029998,2]
[329014867,1718061087570,-210.78274019,0.00029998,2]
[329014868,1718061087581,-270.06932839,0.00029998,2]
[329014869,1718061087592,-156.78502539,0.00029998,2]
[329014870,1718061087603,-155.0,0.00029998,2]
[329014871,1718061087613,-187.78957433,0.00029998,2]
[329014872,1718061087623,-6300.93189469,0.00029998,2]
[329014873,1718061087633,-506.64833036,0.00029998,2]
[329014874,1718061087644,-525.22812032,0.00029998,2]
[329014875,1718061087654,-327.03263673,0.00029998,2]
[329014876,1718061087664,-3063.72776014,0.00029998,2]
[329014877,1718061087676,-155.0,0.00029998,2]
[329014878,1718061087686,-155.0,0.00029998,2]
[329014879,1718061087696,-155.0,0.00029998,2]
[329014880,1718061087706,-209.41336991,0.00029998,2]
[329014881,1718061087717,-155.0,0.00029998,2]
[329014882,1718061087727,-4393.82113961,0.00029998,2]
[329014883,1718061087737,-3100.7560639,0.00029998,2]
[329014884,1718061087748,-296.81340302,0.00029998,2]
[329014885,1718061087758,-941.12648746,0.00029998,2]
[329014886,1718061087769,-947.00231839,0.00029998,2]
[329014887,1718061087779,-155.0,0.00029998,2]
[329014888,1718061087790,-235.10641019,0.00029998,2]
[329014889,1718061087800,-1486.99594681,0.00029998,2]
[329014890,1718061087811,-5000.0,0.00029998,2]
[329014891,1718061087821,-4162.95556327,0.00029998,2]
[329014892,1718061087832,-847.90801139,0.00029998,2]
[329014893,1718061087846,-1483.68025792,0.00029998,3]
[329014894,1718061087857,-155.0,0.00029998,2]
[329014895,1718061087868,-267.14115907,0.00029998,2]
[329014896,1718061087879,-155.4325017,0.00029998,2]
[329014897,1718061087891,-155.0,0.00029998,2]
[329014898,1718061087903,-3659.83852654,0.00029998,2]
[329014899,1718061087914,-1051.68025467,0.00029998,3]
[329014900,1718061087924,-362.84611958,0.00029998,10]
[329014901,1718061087935,-155.0,0.00029998,2]
[329014902,1718061087947,-259.01814825,0.00029998,2]
[329014903,1718061087959,-2006.66539938,0.00029998,2]
[329014904,1718061087970,-4264.74420692,0.00029998,2]
[329014905,1718061087980,-345.57737258,0.00029998,2]
[329014906,1718061087991,-794.16956933,0.00029998,2]
[329014907,1718061088001,-184.75177569,0.00029998,2]
[329014908,1718061088011,-247.05075291,0.00029998,2]
[329014909,1718061088021,-714.53886713,0.00029998,2]
[329014910,1718061088032,-332.55387682,0.00029998,2]
[329014911,1718061088042,-1217.37510868,0.00029998,2]
[329014912,1718061088052,-157.24016084,0.00029998,2]
[329014913,1718061088062,-406.88424522,0.00029998,2]
[329014914,1718061088074,-322.88470624,0.00029998,2]
[329014915,1718061088085,-7940.58179098,0.00029998,2]
[329014916,1718061088095,-1052.73516277,0.00029998,2]
[329014917,1718061088105,-155.11711386,0.00029998,2]
[329014918,1718061088116,-1276.54298382,0.00029998,2]
[329014919,1718061088126,-166.21313967,0.00029998,2]
[329014920,1718061088136,-2818.95926424,0.00029998,2]
[329014921,1718061088146,-206.41789191,0.00029998,2]
[329014922,1718061088156,-327.02518661,0.00029998,2]
[329014923,1718061088167,-2751.94220856,0.00029998,2]
[329014924,1718061088177,-155.0,0.00029998,4]
[329014925,1718061088188,-155.0,0.00029998,2]
[329014926,1718061088199,-1233.54590732,0.00029998,2]
[329014927,1718061088209,-994.87,0.00029998,4]
[329014928,1718061088220,-500.0,0.00029998,4]
[329014929,1718061088231,-985.34,0.00029998,4]
[329014930,1718061088241,-1114.92,0.00029998,4]
[329014931,1718061088251,-500.0,0.00029998,4]
[329014932,1718061088261,-500.0,0.00029998,4]
[329014933,1718061088271,-500.0,0.00029998,4]
[329014934,1718061088282,-500.0,0.00029998,4]
[329014935,1718061088293,-500.0,0.00029998,4]
[329014936,1718061088303,-500.0,0.00029998,4]
[329014937,1718061088314,-4012.45,0.00029998,4]
[329014938,1718061088325,-500.0,0.00029998,4]
[329014939,1718061088335,-500.0,0.00029998,4]
[329014940,1718061088347,-500.0,0.00029998,4]
[329014941,1718061088358,-303.96,0.00029998,4]
[329014942,1718061088372,-2791.45,0.00029998,4]
[329014943,1718061088382,-500.0,0.00029998,4]
[329014944,1718061088393,-945.53,0.00029998,4]
[329014945,1718061088403,-945.53,0.00029998,4]
[329014946,1718061088415,-961.66,0.00029998,4]
[329014947,1718061088425,-500.0,0.00029998,4]
[329014948,1718061088436,-355.48,0.00029998,4]
[329014949,1718061088447,-3147.09,0.00029998,4]
[329014950,1718061088458,-3147.09,0.00029998,4]
[329014951,1718061088469,-500.0,0.00029998,4]
[329014952,1718061088480,-500.0,0.00029998,4]
[329014953,1718061088491,-489.25258953,0.00029998,2]
[329014954,1718061088501,-1585.59,0.00029998,4]
[329014955,1718061088511,-864.13,0.00029998,4]
[329014956,1718061088521,-864.13,0.00029998,4]
[329014957,1718061088532,-500.0,0.00029998,4]
[329014958,1718061088543,-500.0,0.00029998,4]
[329014959,1718061088553,-500.0,0.00029998,4]
[329014960,1718061088564,-500.0,0.00029998,4]
[329014961,1718061088574,-254.53,0.00029998,4]
[329014962,1718061088585,-300.43,0.00029998,4]
[329014963,1718061088595,-500.0,0.00029998,4]
[329014964,1718061088606,-500.0,0.00029998,4]
[329014965,1718061088616,-500.0,0.00029998,4]
[329014966,1718061088626,-500.0,0.00029998,4]
[329014967,1718061088636,-625.43,0.00029998,4]
[329014968,1718061088647,-1000.0,0.00029999,2]
[329014969,1718061088658,-1000.0,0.00029999,3]
[329014970,1718061088669,-500.0,0.00029999,4]
[329014971,1718061088680,-500.0,0.00029999,4]
[329014972,1718061088690,-500.0,0.00029999,4]
[329014973,1718061088701,-273.65,0.00029999,4]
[329014974,1718061088712,-500.0,0.00029999,4]
[329014975,1718061088723,-500.0,0.00029999,4]
[329014976,1718061088734,-500.0,0.00029999,4]
[329014977,1718061088745,-500.0,0.00029999,4]
[329014978,1718061088757,-500.0,0.00029999,4]
[329014979,1718061088768,-500.0,0.00029999,4]
[329014980,1718061088779,-500.0,0.00029999,4]
[329014981,1718061088790,-500.0,0.00029999,4]
[329014982,1718061088801,-500.0,0.00029999,4]
[329014983,1718061088811,-500.0,0.00029999,4]
[329014984,1718061088822,-185.22,0.00029999,4]
[329014985,1718061088833,-500.0,0.00029999,4]
[329014986,1718061088845,-500.0,0.00029999,4]
[329014987,1718061088856,-500.0,0.00029999,4]
[329014988,1718061088866,-500.0,0.00029999,4]
[329014989,1718061088876,-500.0,0.00029999,4]
[329014990,1718061088887,-581.17,0.00029999,4]
[329014991,1718061088898,-500.0,0.00029999,4]
[329014992,1718061088909,-500.0,0.00029999,4]
[329014993,1718061088923,-500.0,0.00029999,4]
[329014994,1718061088934,-500.0,0.00029999,4]
[329014995,1718061088945,-500.0,0.00029999,4]
[329014996,1718061088956,-262.73,0.00029999,4]
[329014997,1718061088966,-500.0,0.00029999,4]
[329014998,1718061088976,-500.0,0.00029999,4]
[329014999,1718061088986,-500.0,0.00029999,4]
[329015000,1718061088996,-500.0,0.00029999,4]
[329015001,1718061089007,-160.6,0.00029999,4]
[329015002,1718061089018,-500.0,0.00029999,4]
[329015003,1718061089028,-251.32,0.00029999,4]
[329015004,1718061089039,-500.0,0.00029999,4]
[329015005,1718061089050,-500.0,0.00029999,4]
[329015006,1718061089062,-570.83,0.00029999,4]
[329015007,1718061089093,-500.0,0.00029999,4]
[329015008,1718061089111,-410.75,0.00029999,4]
[329015009,1718061089123,-2770.45,0.00029999,4]
[329015010,1718061089137,-2770.45,0.00029999,4]
[329015011,1718061089152,-2770.45,0.00029999,4]
[329015012,1718061089167,-2770.45,0.00029999,4]
[329015013,1718061089179,-2770.45,0.00029999,4]
[329015014,1718061089206,-2770.45,0.00029999,4]
[329015015,1718061089220,-2770.45,0.00029999,4]
[329015016,1718061089236,-2770.45,0.00029999,4]
[329015017,1718061089247,-2770.45,0.00029999,4]
[329015018,1718061089258,-2770.45,0.00029999,4]
[329015019,1718061089271,-2770.45,0.00029999,4]
[329015020,1718061089282,-2770.45,0.00029999,4]
[329015021,1718061089294,-2770.45,0.00029999,4]
[329015022,1718061089305,-2770.49010842,0.00029999,4]
[329015023,1718061089318,-500.0,0.00029999,4]
[329015024,1718061089332,-500.0,0.00029999,4]
[329015025,1718061089346,-500.0,0.00029999,4]
[329015026,1718061089364,-500.0,0.00029999,4]
[329015027,1718061089408,-500.0,0.00029999,4]
[329015028,1718061089420,-500.0,0.00029999,4]
[329015029,1718061089438,-500.0,0.00029999,4]
[329015030,1718061089450,-500.0,0.00029999,4]
[329015031,1718061089460,-640.40350812,0.00029999,4]
[329015032,1718061089473,-152.63,0.00029999,4]
[329015033,1718061089483,-152.63,0.00029999,4]
[329015034,1718061089496,-152.63,0.00029999,4]
[329015035,1718061089508,-152.63,0.00029999,4]
[329015036,1718061089522,-152.63,0.00029999,4]
[329015037,1718061089546,-152.63,0.00029999,4]
[329015038,1718061089557,-152.63,0.00029999,4]
[329015039,1718061089568,-152.63,0.00029999,4]
[329015040,1718061089580,-152.63,0.00029999,4]
[329015041,1718061089592,-152.63,0.00029999,4]
[329015042,1718061089603,-152.63,0.00029999,4]
[329015043,1718061089615,-152.63,0.00029999,4]
[329015044,1718061089628,-152.63,0.00029999,4]
[329015045,1718061089642,-152.64858436,0.00029999,4]
[329015046,1718061089654,-629.14,0.00029999,4]
[329015047,1718061089665,-629.14,0.00029999,4]
[329015048,1718061089676,-629.14,0.00029999,4]
[329015049,1718061089687,-629.14,0.00029999,4]
[329015050,1718061089698,-629.14,0.00029999,4]
[329015051,1718061089709,-629.14,0.00029999,4]
[329015052,1718061089720,-629.14,0.00029999,4]
[329015053,1718061089730,-629.14,0.00029999,4]
[329015054,1718061089741,-629.14,0.00029999,4]
[329015055,1718061089752,-629.14,0.00029999,4]
[329015056,1718061089764,-500.0,0.00029999,4]
[329015057,1718061089775,-629.14,0.00029999,4]
[329015058,1718061089785,-500.0,0.00029999,4]
[329015059,1718061089796,-629.14,0.00029999,4]
[329015060,1718061089807,-500.0,0.00029999,4]
[329015061,1718061089818,-629.14,0.00029999,4]
[329015062,1718061089829,-500.0,0.00029999,4]
[329015063,1718061089841,-629.22,0.00029999,4]
[329015064,1718061089852,-500.0,0.00029999,4]
[329015065,1718061089863,-500.0,0.00029999,4]
[329015066,1718061089874,-500.0,0.00029999,4]
[329015067,1718061089886,-500.0,0.00029999,4]
[329015068,1718061089900,-500.0,0.00029999,4]
[329015069,1718061089911,-500.0,0.00029999,4]
[329015070,1718061089926,-500.0,0.00029999,4]
[329015071,1718061089937,-206.6,0.00029999,4]
[329015072,1718061089948,-500.0,0.00029999,4]
[329015073,1718061089959,-314.79,0.00029999,4]
[329015074,1718061090082,-500.0,0.00029999,4]
[329015075,1718061090093,-502.52,0.00029999,4]
[329015076,1718061090105,-500.0,0.00029999,4]
[329015077,1718061090116,-500.0,0.00029999,4]
[329015078,1718061090126,-312.74,0.00029999,4]
[329015079,1718061090136,-500.0,0.00029999,4]
[329015080,1718061090147,-500.0,0.00029999,4]
[329015081,1718061090157,-500.0,0.00029999,4]